[Event "Late-Titled-Tuesday-Blitz-August-29-2023"]
[Site "Chess.com"]
[Date "2023.08.29"]
[Round "5"]
[White "I_am_Javi"]
[Black "Andreikka"]
[Result "1-0"]
[WhiteElo "2750"]
[BlackElo "3011"]
[TimeControl "180+1"]
[EndTime "14:55:20 PDT"]
[Termination "I_am_Javi won on time"]

1. e4 {[%clk 0:02:59.8]} 1... c5 {[%clk 0:02:59.5]} 2. Nf3 {[%clk 0:02:52.7]}
2... Nc6 {[%clk 0:02:59.5]} 3. Nc3 {[%clk 0:02:52.2]} 3... e5 {[%clk 0:02:58.3]}
4. Bc4 {[%clk 0:02:51.3]} 4... Be7 {[%clk 0:02:55.3]} 5. a4 {[%clk 0:02:49.5]}
5... d6 {[%clk 0:02:54.9]} 6. d3 {[%clk 0:02:46.1]} 6... Nf6 {[%clk 0:02:52.8]}
7. h3 {[%clk 0:02:45.5]} 7... O-O {[%clk 0:02:51.6]} 8. O-O {[%clk 0:02:45.2]}
8... Be6 {[%clk 0:02:51.9]} 9. Re1 {[%clk 0:02:43.8]} 9... h6 {[%clk 0:02:50.7]}
10. Nh2 {[%clk 0:02:33.7]} 10... d5 {[%clk 0:02:38.9]} 11. exd5 {[%clk
0:02:33.6]} 11... Nxd5 {[%clk 0:02:38.6]} 12. Bd2 {[%clk 0:02:25.4]} 12... Qd7
{[%clk 0:01:58.6]} 13. Ng4 {[%clk 0:02:16.3]} 13... f6 {[%clk 0:01:53]} 14. Ne3
{[%clk 0:02:03.1]} 14... Nxe3 {[%clk 0:01:45.9]} 15. Bxe3 {[%clk 0:02:01]} 15...
Nd4 {[%clk 0:01:42.9]} 16. Ne4 {[%clk 0:01:46]} 16... Rac8 {[%clk 0:01:35.4]}
17. f4 {[%clk 0:01:17.3]} 17... f5 {[%clk 0:01:26.4]} 18. Nf2 {[%clk 0:01:07.6]}
18... Bh4 {[%clk 0:01:04.1]} 19. c3 {[%clk 0:01:03.2]} 19... Nc6 {[%clk
0:00:43.6]} 20. Bxc5 {[%clk 0:00:57.6]} 20... Rfe8 {[%clk 0:00:40]} 21. Bxe6+
{[%clk 0:00:44.2]} 21... Rxe6 {[%clk 0:00:40.9]} 22. fxe5 {[%clk 0:00:41]} 22...
Nxe5 {[%clk 0:00:41.8]} 23. d4 {[%clk 0:00:31.3]} 23... b6 {[%clk 0:00:29.8]}
24. dxe5 {[%clk 0:00:23.7]} 24... Qxd1 {[%clk 0:00:29.3]} 25. Raxd1 {[%clk
0:00:24.6]} 25... Rxc5 {[%clk 0:00:29.5]} 26. Kf1 {[%clk 0:00:18.4]} 26... Rcxe5
{[%clk 0:00:27.8]} 27. Rxe5 {[%clk 0:00:19.3]} 27... Rxe5 {[%clk 0:00:28.5]} 28.
Rd7 {[%clk 0:00:19.1]} 28... a5 {[%clk 0:00:18.5]} 29. Rd6 {[%clk 0:00:11.2]}
29... Rc5 {[%clk 0:00:09.8]} 30. Rxb6 {[%clk 0:00:10.8]} 30... Rc4 {[%clk
0:00:10.4]} 31. Ke2 {[%clk 0:00:09.4]} 31... Rxa4 {[%clk 0:00:10.5]} 32. Nd3
{[%clk 0:00:08.2]} 32... Ra1 {[%clk 0:00:10.2]} 33. Ra6 {[%clk 0:00:06]} 33...
a4 {[%clk 0:00:07]} 34. c4 {[%clk 0:00:05.8]} 34... Bf6 {[%clk 0:00:02.9]} 35.
c5 {[%clk 0:00:05.8]} 35... Rg1 {[%clk 0:00:02.3]} 36. Kf3 {[%clk 0:00:05.5]}
36... Rd1 {[%clk 0:00:02.6]} 37. Ke2 {[%clk 0:00:05.8]} 37... Rg1 {[%clk
0:00:02.5]} 38. c6 {[%clk 0:00:06.6]} 38... Rxg2+ {[%clk 0:00:02.1]} 39. Kd1
{[%clk 0:00:07.2]} 39... Kf7 {[%clk 0:00:01.3]} 40. c7 {[%clk 0:00:07.1]} 40...
Bg5 {[%clk 0:00:01.3]} 41. c8=Q {[%clk 0:00:06.6]} 1-0

[Event "Late-Titled-Tuesday-Blitz-August-29-2023"]
[Site "Chess.com"]
[Date "2023.08.29"]
[Round "5"]
[White "Jumbo"]
[Black "FedaMaster"]
[Result "1-0"]
[WhiteElo "2944"]
[BlackElo "2671"]
[TimeControl "180+1"]
[EndTime "14:55:21 PDT"]
[Termination "Jumbo won on time"]

1. Nf3 {[%clk 0:03:00.9]} 1... Nf6 {[%clk 0:02:58.5]} 2. c4 {[%clk 0:02:59.4]}
2... g6 {[%clk 0:02:48.5]} 3. Nc3 {[%clk 0:02:58.5]} 3... d5 {[%clk 0:02:42.9]}
4. cxd5 {[%clk 0:02:57.9]} 4... Nxd5 {[%clk 0:02:43.8]} 5. h4 {[%clk 0:02:58.1]}
5... h6 {[%clk 0:02:41.9]} 6. Qa4+ {[%clk 0:02:48.4]} 6... Nc6 {[%clk
0:02:37.8]} 7. Ne5 {[%clk 0:02:45.9]} 7... Qd6 {[%clk 0:02:33]} 8. Nxc6 {[%clk
0:02:42.4]} 8... Qxc6 {[%clk 0:02:32.2]} 9. Qd4 {[%clk 0:02:24.5]} 9... Nxc3
{[%clk 0:01:24.9]} 10. bxc3 {[%clk 0:01:27.7]} 10... Rg8 {[%clk 0:01:22.2]} 11.
e3 {[%clk 0:01:23.6]} 11... Bg7 {[%clk 0:01:14.2]} 12. Qb4 {[%clk 0:01:13]}
12... a5 {[%clk 0:00:49]} 13. Qc4 {[%clk 0:00:59.5]} 13... Bd7 {[%clk
0:00:46.2]} 14. Rb1 {[%clk 0:00:53.1]} 14... Qxc4 {[%clk 0:00:34.3]} 15. Bxc4
{[%clk 0:00:52.6]} 15... b6 {[%clk 0:00:35.2]} 16. Ba3 {[%clk 0:00:48.4]} 16...
e6 {[%clk 0:00:35]} 17. Ke2 {[%clk 0:00:48.2]} 17... O-O-O {[%clk 0:00:33.6]}
18. d4 {[%clk 0:00:42.2]} 18... Bc6 {[%clk 0:00:31.1]} 19. f3 {[%clk 0:00:42.3]}
19... Bd5 {[%clk 0:00:24.9]} 20. Bxd5 {[%clk 0:00:41.5]} 20... exd5 {[%clk
0:00:20.8]} 21. h5 {[%clk 0:00:40.4]} 21... g5 {[%clk 0:00:18.8]} 22. g4 {[%clk
0:00:38.5]} 22... Bf8 {[%clk 0:00:17.5]} 23. Bc1 {[%clk 0:00:33.8]} 23... Bd6
{[%clk 0:00:17]} 24. e4 {[%clk 0:00:33.4]} 24... Rge8 {[%clk 0:00:15.6]} 25. Kd3
{[%clk 0:00:33.8]} 25... f6 {[%clk 0:00:15.3]} 26. exd5 {[%clk 0:00:30.5]} 26...
Bg3 {[%clk 0:00:13.5]} 27. c4 {[%clk 0:00:29.5]} 27... Bf2 {[%clk 0:00:13.5]}
28. Rh2 {[%clk 0:00:25.6]} 28... Be1 {[%clk 0:00:13.6]} 29. Re2 {[%clk
0:00:23.8]} 29... Bb4 {[%clk 0:00:12.5]} 30. Re4 {[%clk 0:00:17.6]} 30... f5
{[%clk 0:00:11.6]} 31. Rxe8 {[%clk 0:00:16.6]} 31... Rxe8 {[%clk 0:00:12.5]} 32.
Be3 {[%clk 0:00:15.1]} 32... f4 {[%clk 0:00:09.6]} 33. Bf2 {[%clk 0:00:12.1]}
33... Kd7 {[%clk 0:00:10.3]} 34. c5 {[%clk 0:00:11]} 34... b5 {[%clk 0:00:09.8]}
35. Rb3 {[%clk 0:00:10.3]} 35... Re7 {[%clk 0:00:09]} 36. a3 {[%clk 0:00:09.9]}
36... Be1 {[%clk 0:00:08.7]} 37. Bg1 {[%clk 0:00:10]} 37... Bg3 {[%clk
0:00:07.8]} 38. Rb1 {[%clk 0:00:08.2]} 38... b4 {[%clk 0:00:06.2]} 39. axb4
{[%clk 0:00:07.9]} 39... a4 {[%clk 0:00:05.9]} 40. b5 {[%clk 0:00:06.6]} 40...
a3 {[%clk 0:00:06.2]} 41. Ra1 {[%clk 0:00:07]} 41... Re1 {[%clk 0:00:05.2]} 42.
Rxe1 {[%clk 0:00:04.1]} 42... Bxe1 {[%clk 0:00:06.1]} 43. Kc2 {[%clk 0:00:04.5]}
43... Bb4 {[%clk 0:00:02.4]} 44. Kb3 {[%clk 0:00:04.4]} 44... Ke7 {[%clk
0:00:01.7]} 45. Bf2 {[%clk 0:00:04.2]} 1-0

[Event "Late-Titled-Tuesday-Blitz-August-29-2023"]
[Site "Chess.com"]
[Date "2023.08.29"]
[Round "5"]
[White "Ncatt"]
[Black "WPWPWP-2015"]
[Result "0-1"]
[WhiteElo "2428"]
[BlackElo "2576"]
[TimeControl "180+1"]
[EndTime "14:55:21 PDT"]
[Termination "WPWPWP-2015 won by resignation"]

1. e4 {[%clk 0:03:00.9]} 1... c5 {[%clk 0:02:59.4]} 2. Nf3 {[%clk 0:03:00.7]}
2... d6 {[%clk 0:02:59.7]} 3. Bb5+ {[%clk 0:03:00.3]} 3... Bd7 {[%clk 0:02:59]}
4. Bxd7+ {[%clk 0:03:00.1]} 4... Qxd7 {[%clk 0:02:59.1]} 5. c4 {[%clk
0:03:00.2]} 5... e5 {[%clk 0:02:57.1]} 6. Nc3 {[%clk 0:03:00.3]} 6... Ne7 {[%clk
0:02:56.4]} 7. a3 {[%clk 0:02:57.1]} 7... g6 {[%clk 0:02:54.5]} 8. b4 {[%clk
0:02:56.6]} 8... cxb4 {[%clk 0:02:52.8]} 9. axb4 {[%clk 0:02:56.4]} 9... Bg7
{[%clk 0:02:53.2]} 10. d3 {[%clk 0:02:50.8]} 10... O-O {[%clk 0:02:52.5]} 11.
Be3 {[%clk 0:02:50.5]} 11... Nbc6 {[%clk 0:02:45.3]} 12. b5 {[%clk 0:02:47.4]}
12... Nd4 {[%clk 0:02:45.2]} 13. Bxd4 {[%clk 0:02:45.4]} 13... exd4 {[%clk
0:02:46.1]} 14. Ne2 {[%clk 0:02:45.2]} 14... f5 {[%clk 0:02:46.5]} 15. Nexd4
{[%clk 0:02:40.9]} 15... fxe4 {[%clk 0:02:46]} 16. dxe4 {[%clk 0:02:41.8]} 16...
Qg4 {[%clk 0:02:45.7]} 17. O-O {[%clk 0:02:34.6]} 17... a5 {[%clk 0:02:38.6]}
18. bxa6 {[%clk 0:02:29.9]} 18... bxa6 {[%clk 0:02:38.1]} 19. Re1 {[%clk
0:02:20.2]} 19... Kh8 {[%clk 0:02:35.7]} 20. h3 {[%clk 0:02:16.5]} 20... Qc8
{[%clk 0:02:34.4]} 21. Qd3 {[%clk 0:02:11.3]} 21... Nc6 {[%clk 0:02:30.7]} 22.
Rad1 {[%clk 0:01:57.9]} 22... Ne5 {[%clk 0:02:05.8]} 23. Nxe5 {[%clk 0:01:57.1]}
23... dxe5 {[%clk 0:02:04.3]} 24. Nf3 {[%clk 0:01:53.6]} 24... a5 {[%clk
0:02:02.2]} 25. Qd5 {[%clk 0:01:46.6]} 25... Rd8 {[%clk 0:01:33.9]} 26. Qb5
{[%clk 0:01:38.3]} 26... Qc7 {[%clk 0:01:25.6]} 27. Rd5 {[%clk 0:01:33.5]} 27...
Rdb8 {[%clk 0:01:20.2]} 28. Qa4 {[%clk 0:00:45.9]} 28... Rb4 {[%clk 0:01:16.3]}
29. Qd1 {[%clk 0:00:39.2]} 29... Rb7 {[%clk 0:00:57.1]} 30. c5 {[%clk
0:00:36.5]} 30... h6 {[%clk 0:00:46.6]} 31. Qa1 {[%clk 0:00:31.5]} 31... a4
{[%clk 0:00:41]} 32. Nxe5 {[%clk 0:00:24.2]} 32... Kh7 {[%clk 0:00:40.8]} 33. c6
{[%clk 0:00:20.2]} 33... Rb3 {[%clk 0:00:33.8]} 34. f4 {[%clk 0:00:19.3]} 34...
a3 {[%clk 0:00:32.9]} 35. Rd7 {[%clk 0:00:18.3]} 35... Qc8 {[%clk 0:00:19.2]}
36. Qd1 {[%clk 0:00:18.1]} 36... a2 {[%clk 0:00:16]} 37. Qg4 {[%clk 0:00:17.8]}
37... Qe8 {[%clk 0:00:14.9]} 38. c7 {[%clk 0:00:16.9]} 38... a1=Q {[%clk
0:00:13.6]} 39. Rxa1 {[%clk 0:00:15.7]} 39... Rxa1+ {[%clk 0:00:13.4]} 40. Kh2
{[%clk 0:00:16]} 40... Rc1 {[%clk 0:00:11.9]} 41. Rd8 {[%clk 0:00:15.1]} 41...
Qxe5 {[%clk 0:00:11.8]} 42. c8=Q {[%clk 0:00:11.7]} 42... Rxc8 {[%clk
0:00:10.8]} 43. Rxc8 {[%clk 0:00:06.9]} 43... Qxe4 {[%clk 0:00:10.6]} 44. Rc7
{[%clk 0:00:06.6]} 44... Qf5 {[%clk 0:00:09.2]} 45. Qh4 {[%clk 0:00:04.2]} 45...
Re3 {[%clk 0:00:08.3]} 46. Qd8 {[%clk 0:00:03.2]} 46... Qxf4+ {[%clk 0:00:07.6]}
0-1

[Event "Late-Titled-Tuesday-Blitz-August-29-2023"]
[Site "Chess.com"]
[Date "2023.08.29"]
[Round "5"]
[White "GMMikhailKazakov"]
[Black "ferrufino64"]
[Result "1-0"]
[WhiteElo "2355"]
[BlackElo "2127"]
[TimeControl "180+1"]
[EndTime "14:55:23 PDT"]
[Termination "GMMikhailKazakov won by checkmate"]

1. d4 {[%clk 0:02:53.8]} 1... d5 {[%clk 0:02:58.9]} 2. c4 {[%clk 0:02:50.7]}
2... e6 {[%clk 0:02:58.6]} 3. Nc3 {[%clk 0:02:47.8]} 3... Nf6 {[%clk 0:02:55.3]}
4. e3 {[%clk 0:02:47.8]} 4... b6 {[%clk 0:02:51.3]} 5. Nf3 {[%clk 0:02:46.5]}
5... Be7 {[%clk 0:02:46.8]} 6. cxd5 {[%clk 0:02:43.9]} 6... exd5 {[%clk
0:02:44.3]} 7. Be2 {[%clk 0:02:43.9]} 7... O-O {[%clk 0:02:44.3]} 8. O-O {[%clk
0:02:43.6]} 8... Re8 {[%clk 0:02:44.1]} 9. b3 {[%clk 0:02:39.3]} 9... Bb7 {[%clk
0:02:43.7]} 10. Bb2 {[%clk 0:02:37.3]} 10... Nbd7 {[%clk 0:02:38.9]} 11. Rc1
{[%clk 0:02:31.3]} 11... c6 {[%clk 0:02:31.5]} 12. Bd3 {[%clk 0:02:28.2]} 12...
Bd6 {[%clk 0:02:27.4]} 13. Ne2 {[%clk 0:02:25.1]} 13... Nf8 {[%clk 0:02:10.7]}
14. Ne5 {[%clk 0:02:21]} 14... Rc8 {[%clk 0:01:58.7]} 15. Ng3 {[%clk 0:02:18.7]}
15... a6 {[%clk 0:01:58.7]} 16. Qe2 {[%clk 0:02:14.1]} 16... a5 {[%clk
0:01:42.2]} 17. f4 {[%clk 0:02:12.1]} 17... c5 {[%clk 0:01:37.6]} 18. Bb5 {[%clk
0:02:07.9]} 18... Re7 {[%clk 0:01:37.1]} 19. Nf5 {[%clk 0:02:06.3]} 19... Rec7
{[%clk 0:01:37.1]} 20. dxc5 {[%clk 0:01:45.3]} 20... Bxc5 {[%clk 0:01:23.1]} 21.
Rcd1 {[%clk 0:01:40.1]} 21... Ne4 {[%clk 0:01:09.2]} 22. h4 {[%clk 0:01:05.6]}
22... Ng6 {[%clk 0:00:36.7]} 23. h5 {[%clk 0:01:03.2]} 23... Nh4 {[%clk
0:00:34.3]} 24. Nxg7 {[%clk 0:00:33.7]} 24... d4 {[%clk 0:00:20.6]} 25. Qg4
{[%clk 0:00:23.5]} 25... Kh8 {[%clk 0:00:08.3]} 26. h6 {[%clk 0:00:21.3]} 26...
f5 {[%clk 0:00:07]} 27. Nxf5 {[%clk 0:00:17.6]} 27... Nxf5 {[%clk 0:00:05]} 28.
Qxf5 {[%clk 0:00:18.5]} 28... Qg8 {[%clk 0:00:04.6]} 29. Rxd4 {[%clk 0:00:15.3]}
29... Ng3 {[%clk 0:00:04.8]} 30. Qf6+ {[%clk 0:00:14.3]} 30... Rg7 {[%clk
0:00:03.2]} 31. hxg7+ {[%clk 0:00:12.5]} 31... Qxg7 {[%clk 0:00:04.1]} 32. Qxg7+
{[%clk 0:00:12.3]} 32... Kxg7 {[%clk 0:00:05]} 33. Rd7+ {[%clk 0:00:10.8]} 33...
Kg8 {[%clk 0:00:03.9]} 34. Bd4 {[%clk 0:00:10.4]} 34... Ne2+ {[%clk 0:00:03.3]}
35. Kf2 {[%clk 0:00:08.4]} 35... Bxd4 {[%clk 0:00:03.6]} 36. exd4 {[%clk
0:00:09.3]} 36... Nc3 {[%clk 0:00:02.5]} 37. Rxb7 {[%clk 0:00:06.7]} 37... Nxb5
{[%clk 0:00:02.8]} 38. Rd1 {[%clk 0:00:06.6]} 38... Nc3 {[%clk 0:00:02.7]} 39.
Rd3 {[%clk 0:00:06.1]} 39... Ne4+ {[%clk 0:00:03]} 40. Ke3 {[%clk 0:00:06.6]}
40... Nd6 {[%clk 0:00:03.9]} 41. Rxb6 {[%clk 0:00:06.5]} 41... Nf5+ {[%clk
0:00:04.8]} 42. Ke4 {[%clk 0:00:06.7]} 42... Nd6+ {[%clk 0:00:05]} 43. Rxd6
{[%clk 0:00:02.9]} 43... Rc1 {[%clk 0:00:05]} 44. Rg3+ {[%clk 0:00:02.9]} 44...
Kf8 {[%clk 0:00:05.2]} 45. Rd7 {[%clk 0:00:03.8]} 45... Re1+ {[%clk 0:00:05.8]}
46. Kd5 {[%clk 0:00:03.4]} 46... Rc1 {[%clk 0:00:06.7]} 47. Rgg7 {[%clk
0:00:02.3]} 47... Rc8 {[%clk 0:00:07.6]} 48. Ke4 {[%clk 0:00:02.9]} 48... Ke8
{[%clk 0:00:08]} 49. Rdf7 {[%clk 0:00:03.6]} 49... Rc2 {[%clk 0:00:08.1]} 50.
Rg8# {[%clk 0:00:04.4]} 1-0

[Event "Late-Titled-Tuesday-Blitz-August-29-2023"]
[Site "Chess.com"]
[Date "2023.08.29"]
[Round "5"]
[White "sergiochess83"]
[Black "Fh2411"]
[Result "1-0"]
[WhiteElo "2939"]
[BlackElo "2632"]
[TimeControl "180+1"]
[EndTime "14:55:24 PDT"]
[Termination "sergiochess83 won on time"]

1. d4 {[%clk 0:02:52.5]} 1... Nf6 {[%clk 0:02:59]} 2. c4 {[%clk 0:02:49]} 2...
e6 {[%clk 0:02:59.1]} 3. g3 {[%clk 0:02:49.5]} 3... Bb4+ {[%clk 0:02:58.7]} 4.
Nd2 {[%clk 0:02:48.1]} 4... O-O {[%clk 0:02:56.3]} 5. Bg2 {[%clk 0:02:47.2]}
5... Re8 {[%clk 0:02:56.5]} 6. Nf3 {[%clk 0:02:43.4]} 6... d5 {[%clk 0:02:49.2]}
7. O-O {[%clk 0:02:42.9]} 7... Bf8 {[%clk 0:02:47.9]} 8. b3 {[%clk 0:02:41.5]}
8... b6 {[%clk 0:02:43.7]} 9. cxd5 {[%clk 0:02:34.5]} 9... exd5 {[%clk
0:02:42.4]} 10. Bb2 {[%clk 0:02:34]} 10... Bb7 {[%clk 0:02:40.7]} 11. Rc1 {[%clk
0:02:33.4]} 11... a6 {[%clk 0:02:32.8]} 12. Ne5 {[%clk 0:02:31]} 12... Bd6
{[%clk 0:02:32.6]} 13. Ndc4 {[%clk 0:02:28]} 13... Ne4 {[%clk 0:02:06.5]} 14.
Nxd6 {[%clk 0:02:24.4]} 14... cxd6 {[%clk 0:01:56]} 15. Nd3 {[%clk 0:02:24.2]}
15... Nd7 {[%clk 0:01:52.3]} 16. f3 {[%clk 0:02:14.3]} 16... Nef6 {[%clk
0:01:51.5]} 17. Qd2 {[%clk 0:02:14.7]} 17... b5 {[%clk 0:01:39.9]} 18. Bh3
{[%clk 0:02:00.5]} 18... Qb6 {[%clk 0:01:32.4]} 19. Kh1 {[%clk 0:01:44.8]} 19...
Rac8 {[%clk 0:01:30.8]} 20. g4 {[%clk 0:01:42.3]} 20... h6 {[%clk 0:01:18.4]}
21. Rg1 {[%clk 0:01:07.4]} 21... g5 {[%clk 0:01:10.6]} 22. Bg2 {[%clk
0:00:59.2]} 22... Nf8 {[%clk 0:01:01.9]} 23. h4 {[%clk 0:00:57.8]} 23... Ne6
{[%clk 0:00:56.7]} 24. hxg5 {[%clk 0:00:54.1]} 24... hxg5 {[%clk 0:00:57.6]} 25.
Kh2 {[%clk 0:00:46.5]} 25... Kg7 {[%clk 0:00:56.5]} 26. Kg3 {[%clk 0:00:46.3]}
26... Rh8 {[%clk 0:00:48.9]} 27. Rxc8 {[%clk 0:00:44.4]} 27... Bxc8 {[%clk
0:00:45.2]} 28. Rc1 {[%clk 0:00:39.8]} 28... Qd8 {[%clk 0:00:42.5]} 29. e3
{[%clk 0:00:28.8]} 29... Bb7 {[%clk 0:00:40.3]} 30. Bc3 {[%clk 0:00:25.6]} 30...
Rh4 {[%clk 0:00:37.8]} 31. Bb4 {[%clk 0:00:22.6]} 31... Ne8 {[%clk 0:00:27.1]}
32. Rh1 {[%clk 0:00:20.7]} 32... Rxh1 {[%clk 0:00:25.7]} 33. Bxh1 {[%clk
0:00:21.6]} 33... Qf6 {[%clk 0:00:26.1]} 34. Qh2 {[%clk 0:00:18.1]} 34... Qg6
{[%clk 0:00:25.9]} 35. Qd2 {[%clk 0:00:12.9]} 35... Qh7 {[%clk 0:00:26]} 36. Kg2
{[%clk 0:00:13.1]} 36... Nf8 {[%clk 0:00:15.1]} 37. Kg1 {[%clk 0:00:12.9]} 37...
Ng6 {[%clk 0:00:14.4]} 38. Bg2 {[%clk 0:00:09.9]} 38... Nh4 {[%clk 0:00:13.9]}
39. Ba5 {[%clk 0:00:07.3]} 39... Qg6 {[%clk 0:00:11.2]} 40. Bd8 {[%clk
0:00:06.2]} 40... Nf6 {[%clk 0:00:06.8]} 41. Kf2 {[%clk 0:00:03]} 41... Nh7
{[%clk 0:00:06.7]} 42. Kg3 {[%clk 0:00:03.1]} 42... Nf8 {[%clk 0:00:05.1]} 43.
f4 {[%clk 0:00:02.9]} 1-0

[Event "Late-Titled-Tuesday-Blitz-August-29-2023"]
[Site "Chess.com"]
[Date "2023.08.29"]
[Round "5"]
[White "IlanSchnaider"]
[Black "Petukhov_Dmitry"]
[Result "1-0"]
[WhiteElo "2702"]
[BlackElo "2524"]
[TimeControl "180+1"]
[EndTime "14:55:24 PDT"]
[Termination "IlanSchnaider won on time"]

1. e4 {[%clk 0:03:00.9]} 1... c5 {[%clk 0:02:58]} 2. Nf3 {[%clk 0:03:01]} 2...
d6 {[%clk 0:02:58.5]} 3. Bb5+ {[%clk 0:03:00.1]} 3... Nc6 {[%clk 0:02:58.2]} 4.
O-O {[%clk 0:02:58.4]} 4... Bd7 {[%clk 0:02:58.1]} 5. Re1 {[%clk 0:02:57.2]}
5... a6 {[%clk 0:02:58.3]} 6. Bf1 {[%clk 0:02:56]} 6... e5 {[%clk 0:02:58.5]} 7.
c3 {[%clk 0:02:55.5]} 7... Nf6 {[%clk 0:02:56.7]} 8. d4 {[%clk 0:02:55.3]} 8...
Qc7 {[%clk 0:02:55.6]} 9. Bg5 {[%clk 0:02:53.7]} 9... Be7 {[%clk 0:02:55.2]} 10.
Na3 {[%clk 0:02:52.5]} 10... h6 {[%clk 0:02:51.4]} 11. Bxf6 {[%clk 0:02:51.7]}
11... Bxf6 {[%clk 0:02:52.3]} 12. Nc4 {[%clk 0:02:42.1]} 12... O-O {[%clk
0:02:43.1]} 13. Ne3 {[%clk 0:02:38.7]} 13... Ne7 {[%clk 0:02:27.9]} 14. Rc1
{[%clk 0:02:29.7]} 14... Bc6 {[%clk 0:02:26.9]} 15. Bd3 {[%clk 0:02:22.7]} 15...
Rfe8 {[%clk 0:02:26.1]} 16. dxc5 {[%clk 0:02:08.9]} 16... dxc5 {[%clk
0:02:24.3]} 17. Nd2 {[%clk 0:02:08.7]} 17... Rad8 {[%clk 0:02:18.6]} 18. Qe2
{[%clk 0:02:00.6]} 18... Bg5 {[%clk 0:02:06.3]} 19. Nf3 {[%clk 0:01:54]} 19...
Ng6 {[%clk 0:01:43.6]} 20. g3 {[%clk 0:01:46.4]} 20... Bxe3 {[%clk 0:01:26]} 21.
Qxe3 {[%clk 0:01:45.8]} 21... Nf4 {[%clk 0:01:13.8]} 22. gxf4 {[%clk 0:01:29]}
22... exf4 {[%clk 0:01:14.7]} 23. Qe2 {[%clk 0:01:29.4]} 23... f5 {[%clk
0:01:14.3]} 24. e5 {[%clk 0:01:24.3]} 24... Re6 {[%clk 0:01:07.3]} 25. Bxf5
{[%clk 0:01:15.7]} 25... Re7 {[%clk 0:00:58.7]} 26. Nh4 {[%clk 0:00:57.8]} 26...
Rf8 {[%clk 0:00:38.3]} 27. Qc4+ {[%clk 0:00:55.4]} 27... Ref7 {[%clk 0:00:32.1]}
28. Bg6 {[%clk 0:00:52.6]} 28... Qe7 {[%clk 0:00:31.8]} 29. Bxf7+ {[%clk
0:00:39.5]} 29... Rxf7 {[%clk 0:00:28.8]} 30. Ng2 {[%clk 0:00:16.4]} 30... f3
{[%clk 0:00:25.7]} 31. Ne3 {[%clk 0:00:13]} 31... Qg5+ {[%clk 0:00:25.5]} 32.
Qg4 {[%clk 0:00:12.9]} 32... Qxe5 {[%clk 0:00:15.5]} 33. Nf1 {[%clk 0:00:13.3]}
33... Qf6 {[%clk 0:00:14.7]} 34. Ng3 {[%clk 0:00:13.5]} 34... Qd6 {[%clk
0:00:12.2]} 35. Rcd1 {[%clk 0:00:13]} 35... Qf6 {[%clk 0:00:11.7]} 36. h4 {[%clk
0:00:09.4]} 36... g6 {[%clk 0:00:09.9]} 37. h5 {[%clk 0:00:08.8]} 37... Rg7
{[%clk 0:00:09]} 38. Qc4+ {[%clk 0:00:07.4]} 38... Kh7 {[%clk 0:00:09]} 39. Qd3
{[%clk 0:00:06.4]} 39... Kg8 {[%clk 0:00:07.3]} 40. Re4 {[%clk 0:00:06.2]} 40...
gxh5 {[%clk 0:00:06.9]} 41. Kf1 {[%clk 0:00:04.4]} 41... c4 {[%clk 0:00:04.6]}
42. Qd8+ {[%clk 0:00:04.5]} 42... Kh7 {[%clk 0:00:03.7]} 43. Qxf6 {[%clk
0:00:04.4]} 1-0

[Event "Late-Titled-Tuesday-Blitz-August-29-2023"]
[Site "Chess.com"]
[Date "2023.08.29"]
[Round "5"]
[White "eldur16"]
[Black "tptagain"]
[Result "0-1"]
[WhiteElo "2626"]
[BlackElo "2891"]
[TimeControl "180+1"]
[EndTime "14:55:26 PDT"]
[Termination "tptagain won by resignation"]

1. e4 {[%clk 0:03:00.9]} 1... c6 {[%clk 0:03:00]} 2. d3 {[%clk 0:02:59.4]} 2...
d5 {[%clk 0:03:00.1]} 3. Nf3 {[%clk 0:02:59.3]} 3... g6 {[%clk 0:02:58.4]} 4.
Be2 {[%clk 0:02:57.9]} 4... Bg7 {[%clk 0:02:57.7]} 5. O-O {[%clk 0:02:57.9]}
5... c5 {[%clk 0:02:55.3]} 6. exd5 {[%clk 0:02:57]} 6... Qxd5 {[%clk 0:02:56.2]}
7. Nc3 {[%clk 0:02:56.3]} 7... Qd8 {[%clk 0:02:42.5]} 8. Be3 {[%clk 0:02:55.8]}
8... Nd7 {[%clk 0:02:38.6]} 9. d4 {[%clk 0:02:49.2]} 9... cxd4 {[%clk 0:02:39]}
10. Nxd4 {[%clk 0:02:39.7]} 10... Ngf6 {[%clk 0:02:36]} 11. Bf3 {[%clk
0:02:39.1]} 11... Ne5 {[%clk 0:02:31.7]} 12. Re1 {[%clk 0:02:33.2]} 12... O-O
{[%clk 0:02:30.3]} 13. Ndb5 {[%clk 0:02:24.6]} 13... Qxd1 {[%clk 0:02:18.2]} 14.
Bxd1 {[%clk 0:02:23.4]} 14... Nc4 {[%clk 0:02:18.3]} 15. Nc7 {[%clk 0:02:18.8]}
15... Nxe3 {[%clk 0:02:09.5]} 16. Nxa8 {[%clk 0:02:14.8]} 16... Nc4 {[%clk
0:01:55.6]} 17. Be2 {[%clk 0:02:07.3]} 17... Nxb2 {[%clk 0:01:44.8]} 18. Rab1
{[%clk 0:02:06.5]} 18... Bf5 {[%clk 0:01:28.6]} 19. Rxb2 {[%clk 0:02:05]} 19...
Ne4 {[%clk 0:01:28.8]} 20. Nxe4 {[%clk 0:01:07.9]} 20... Bxb2 {[%clk 0:01:29.7]}
21. Ng3 {[%clk 0:01:03.1]} 21... Rxa8 {[%clk 0:01:18.4]} 22. Nxf5 {[%clk
0:01:02.9]} 22... gxf5 {[%clk 0:01:19.3]} 23. Rb1 {[%clk 0:01:03]} 23... Bd4
{[%clk 0:01:17]} 24. Rxb7 {[%clk 0:01:02.6]} 24... Kf8 {[%clk 0:01:14.8]} 25.
Bd3 {[%clk 0:01:00.7]} 25... e6 {[%clk 0:01:14.1]} 26. Kf1 {[%clk 0:01:00]}
26... Rc8 {[%clk 0:01:11.5]} 27. a4 {[%clk 0:00:52.5]} 27... e5 {[%clk
0:01:02.6]} 28. Bxf5 {[%clk 0:00:48.8]} 28... Rc4 {[%clk 0:01:01.8]} 29. Be4
{[%clk 0:00:38.9]} 29... Rxa4 {[%clk 0:00:52.9]} 30. Bd5 {[%clk 0:00:38.7]}
30... f5 {[%clk 0:00:28.7]} 31. Rf7+ {[%clk 0:00:34]} 31... Ke8 {[%clk
0:00:29.1]} 32. Rxf5 {[%clk 0:00:33.9]} 32... Ra1+ {[%clk 0:00:29.3]} 33. Ke2
{[%clk 0:00:33.3]} 33... a5 {[%clk 0:00:29.8]} 34. f4 {[%clk 0:00:26]} 34... a4
{[%clk 0:00:25.9]} 35. fxe5 {[%clk 0:00:26]} 35... a3 {[%clk 0:00:25.2]} 36. e6
{[%clk 0:00:26.1]} 36... a2 {[%clk 0:00:21.9]} 37. Rf7 {[%clk 0:00:21.9]} 37...
Re1+ {[%clk 0:00:21.4]} 38. Kxe1 {[%clk 0:00:20.9]} 38... a1=Q+ {[%clk
0:00:21.8]} 39. Ke2 {[%clk 0:00:21.2]} 39... Qa6+ {[%clk 0:00:20.8]} 40. c4
{[%clk 0:00:20.5]} 40... Bc5 {[%clk 0:00:17.5]} 41. Rxh7 {[%clk 0:00:19.1]}
41... Qa2+ {[%clk 0:00:17.8]} 42. Kf3 {[%clk 0:00:18.4]} 42... Qf2+ {[%clk
0:00:17.9]} 43. Kg4 {[%clk 0:00:18.3]} 43... Qe2+ {[%clk 0:00:17.5]} 44. Kh4
{[%clk 0:00:16.7]} 44... Qe5 {[%clk 0:00:13.2]} 45. Bc6+ {[%clk 0:00:15]} 45...
Kd8 {[%clk 0:00:13.6]} 46. Rd7+ {[%clk 0:00:12]} 46... Kc8 {[%clk 0:00:14.1]}
47. Bb7+ {[%clk 0:00:11.3]} 47... Kb8 {[%clk 0:00:14.3]} 48. Bd5 {[%clk
0:00:11.5]} 48... Qxh2+ {[%clk 0:00:14.5]} 49. Kg4 {[%clk 0:00:11.3]} 49... Qe5
{[%clk 0:00:14.6]} 50. Kf3 {[%clk 0:00:10.5]} 50... Qf5+ {[%clk 0:00:14.1]} 51.
Kg3 {[%clk 0:00:09.7]} 51... Bf2+ {[%clk 0:00:13.6]} 0-1